bitfinex-derivatives/quotes_ETHF0:USTF0_20240822
["timestamp","ask_amount","ask_price","bid_price","bid_amount"]
[1724339788561,1.2363,2608.5,2608.3,0.00575186]
[1724339788967,2.3743,2608.5,2608.3,0.00575186]
[1724339789965,2.75756,2608.5,2608.3,0.00575186]
[1724339790275,2.3743,2608.5,2608.3,0.00575186]
[1724339792181,2.75756,2608.5,2608.3,0.00575186]
[1724339792567,1.166,2608.4,2608.3,0.00575186]
[1724339794875,1.54927,2608.4,2608.3,0.00575186]
[1724339795381,1.166,2608.4,2608.3,0.00575186]
[1724339795776,1.54927,2608.4,2608.3,0.00575186]
[1724339795976,8.59067,2608.4,2608.3,0.00575186]
[1724339796477,8.59067,2608.4,2607.8,1.2463]
[1724339796478,13.39821495,2608.4,2607.8,1.2463]
[1724339796678,0.38332,2608.1,2607.8,1.2463]
[1724339796878,2.4453,2608.0,2607.8,1.2463]
[1724339797077,2.4453,2608.0,2607.8,1.62965]
[1724339797577,4.3738,2608.4,2607.8,1.2463]
[1724339797786,1.2535,2608.3,2608.0,0.38332]
[1724339797980,2.4453,2608.3,2608.0,0.38332]
[1724339798485,2.4453,2608.3,2607.9,0.38333]
[1724339799373,0.38331,2608.2,2607.8,1.2463]
[1724339799571,0.38331,2608.2,2607.8,1.62966]
[1724339801682,2.4453,2608.3,2608.0,0.38332]
[1724339801891,2.4453,2608.3,2608.1,0.38331]
[1724339802183,1.2535,2608.3,2608.2,1.5681]
[1724339802389,3.2078,2608.4,2608.3,0.38329]
[1724339802585,3.21222067,2608.7,2608.5,0.38325]
[1724339802988,3.21222067,2608.7,2608.6,2.3167]
[1724339803482,0.00442067,2608.7,2608.6,2.3167]
[1724339804385,0.00442067,2608.7,2608.6,6.53354]
[1724339805279,0.00442067,2608.7,2608.6,6.1503]
[1724339805480,0.00442067,2608.7,2608.6,6.53354]
[1724339805985,0.00442067,2608.7,2608.6,6.1503]
[1724339806687,0.00442067,2608.7,2608.6,6.53354]
[1724339807088,0.00442067,2608.7,2608.6,11.53354]
[1724339807286,1.1618,2609.6,2608.7,0.38323]
[1724339807487,2.3455,2609.6,2609.1,0.38316]
[1724339807687,2.7286,2609.6,2609.2,2.4014]
[1724339807891,2.3455,2609.6,2609.2,2.4014]
[1724339808197,3.59483294,2609.5,2609.2,0.00289205]
[1724339809191,3.21172294,2609.5,2609.2,0.00289205]
[1724339810098,3.59483294,2609.5,2609.2,0.00289205]
[1724339810591,0.38312,2609.4,2609.2,0.00289205]
[1724339810787,0.38314,2609.3,2609.2,0.00289205]
[1724339811190,0.38313,2609.4,2609.2,0.00289205]
[1724339811497,0.38314,2609.3,2609.2,0.00289205]
[1724339811894,4.21594,2609.3,2609.2,0.00289205]
[1724339812092,5.41284,2609.3,2609.2,0.00289205]
[1724339813798,4.79069,2609.2,2608.5,2.2408]
[1724339813990,0.38321,2608.9,2608.5,2.2408]
[1724339814299,1.1023,2608.8,2608.5,2.2408]
[1724339814496,2.2054,2608.8,2608.5,2.2408]
[1724339814799,2.2054,2608.8,2608.6,0.38324]
[1724339816397,2.2054,2608.8,2608.5,2.24362119]
[1724339816694,3.59097,2609.1,2608.7,3.59102]
[1724339817000,3.2078,2609.1,2608.7,3.59102]
[1724339817189,3.2078,2609.1,2608.8,0.38321]
[1724339817392,3.2078,2609.1,2608.9,0.38319]
[1724339817586,1.1279,2609.2,2609.1,0.38317]
[1724339817800,8.41875186,2609.6,2609.1,3.8328]
[1724339817801,1.54914294,2609.5,2609.1,3.8328]
[1724339817988,2.29392294,2609.5,2609.1,0.38317]
[1724339818301,2.29392294,2609.5,2609.2,2.1511]
[1724339821195,0.00392294,2609.5,2609.2,2.1511]
[1724339821901,0.00392294,2609.5,2609.3,3.2078]
[1724339822200,0.00392294,2609.5,2609.2,2.1511]
[1724339823192,0.00392294,2609.5,2609.2,2.53425]
[1724339824004,0.00392294,2609.5,2609.3,0.38314]
[1724339824201,0.00392294,2609.5,2609.2,2.1511]
[1724339824389,0.00392294,2609.5,2609.2,2.53425]
[1724339826097,0.00392294,2609.5,2609.3,0.38313]
[1724339826304,0.00392294,2609.5,2609.2,2.53424]
[1724339826804,0.00392294,2609.5,2609.2,2.1511]
[1724339827201,0.00392294,2609.5,2609.2,2.53425]
[1724339827388,0.00392294,2609.5,2609.2,2.1511]
[1724339827801,0.00392294,2609.5,2609.1,1.0999]
[1724339827802,0.38314,2609.3,2608.9,0.38319]
[1724339827999,0.00392294,2609.5,2608.9,0.38319]
[1724339828306,1.0727,2609.3,2609.0,0.38318]
[1724339828608,1.0727,2609.3,2609.1,0.38317]
[1724339828798,1.0727,2609.3,2609.2,1.46315]
[1724339828994,1.0727,2609.3,2609.2,1.08]
[1724339829304,0.38703294,2609.5,2609.2,4.9128]
[1724339829504,0.38703294,2609.5,2609.2,1.08]
[1724339829700,0.38313,2609.4,2609.2,1.08]
[1724339829899,0.38314,2609.3,2609.0,0.38318]
[1724339830207,0.38313,2609.4,2609.0,0.38318]
[1724339830700,0.00392294,2609.5,2609.0,0.38318]
[1724339830701,0.38314,2609.3,2609.0,3.59098]
[1724339830903,0.38313,2609.4,2609.1,0.38317]
[1724339831296,0.38704294,2609.5,2609.1,0.38317]
[1724339831708,0.38313,2609.4,2609.1,0.38317]
[1724339831897,0.38704294,2609.5,2609.1,0.38317]
[1724339832205,0.00392294,2609.5,2609.2,0.38315]
[1724339832404,0.00392294,2609.5,2609.3,3.2554]
[1724339832608,0.38703294,2609.5,2609.3,3.2554]
[1724339832805,0.00392294,2609.5,2609.3,3.2554]
[1724339833505,0.00392294,2609.5,2609.3,3.63853]
[1724339833693,0.00392294,2609.5,2609.3,3.2554]
[1724339834006,0.00392294,2609.5,2609.3,2.1628]
[1724339834703,0.38704294,2609.5,2609.3,1.0671]
[1724339834908,0.00392294,2609.5,2609.3,1.45023]
[1724339835211,0.00392294,2609.5,2609.4,1.47732]
[1724339835407,0.00392294,2609.5,2609.4,1.0942]
[1724339836412,0.00392294,2609.5,2609.3,1.0671]
[1724339836918,0.38313,2609.4,2609.1,1.1204]
[1724339837104,1.1342,2609.3,2609.1,1.1204]
[1724339837809,1.51734,2609.3,2609.1,1.1204]
[1724339838308,0.38315,2609.2,2609.0,1.0942]
[1724339838609,0.38318,2609.0,2608.7,1.0709]
[1724339839505,1.1624,2609.2,2608.8,0.3832]
[1724339839702,1.1624,2609.2,2608.9,1.1468]
[1724339840301,1.1624,2609.2,2608.9,1.53]
[1724339840498,3.2078,2609.4,2609.1,0.38316]
[1724339840713,3.2078,2609.4,2609.2,1.1698]
[1724339840909,3.2078,2609.4,2609.3,1.1256]
[1724339841209,3.2078,2609.4,2609.3,1.50874]
[1724339841408,0.00392294,2609.5,2609.3,1.1256]
[1724339842113,0.00392294,2609.5,2609.3,4.3334]
[1724339842307,0.00392294,2609.5,2609.4,1.51962]
[1724339842707,0.00392294,2609.5,2609.4,4.9685]
[1724339843610,0.00392294,2609.5,2609.4,5.35162]
[1724339844608,0.00392294,2609.5,2609.4,10.35162]
[1724339845801,1e-08,2609.6,2609.5,4.21511]
[1724339846301,1e-08,2609.6,2609.5,9.21511]
[1724339846706,0.00345767,2609.6,2609.5,9.21511]
[1724339847612,0.00345767,2609.6,2609.5,10.17289]
[1724339847914,0.38295,2610.6,2610.2,0.38299]
[1724339848117,0.38298,2610.4,2610.2,3.2078]
[1724339848314,0.383,2610.3,2610.0,0.38303]
[1724339848515,1.5332,2610.3,2610.0,0.38303]
[1724339848719,1.53662649,2610.3,2610.0,0.38303]
[1724339849021,1.15362649,2610.3,2609.9,3.2078]
[1724339849524,1.15362649,2610.3,2609.6,1.1126]
[1724339849525,0.38302,2610.1,2609.8,0.38306]
[1724339850024,1.135,2610.2,2609.6,4.3204]
[1724339850323,0.38302,2610.1,2609.8,0.38306]
[1724339850530,1.51802,2610.2,2609.9,0.38305]
[1724339851737,1.51802,2610.2,2609.8,0.38306]
[1724339851922,1.51801,2610.2,2609.9,0.38305]
[1724339852530,1.135,2610.2,2609.9,0.38305]
[1724339852726,1.135,2610.2,2610.0,0.38303]
[1724339853133,1.135,2610.2,2609.9,3.2078]
[1724339853134,1.135,2610.2,2610.1,0.38302]
[1724339853334,1.135,2610.2,2609.9,3.2078]
[1724339853335,1.15362649,2610.3,2610.2,0.38301]
[1724339854041,1.15362649,2610.3,2610.1,0.38301]
[1724339854335,1.15362649,2610.3,2610.1,0.38302]
[1724339854638,1.15362649,2610.3,2610.0,1.1019]
[1724339854938,0.38301,2610.2,2609.8,0.38306]
[1724339855231,1.0811,2610.2,2609.8,0.38306]
[1724339855623,1.46411,2610.2,2609.8,0.38306]
[1724339857137,1.46411,2610.2,2609.9,0.38305]
[1724339857438,1.46411,2610.2,2609.8,0.38306]
[1724339859045,3.2078,2610.1,2609.3,6.52655186]
[1724339859228,0.38307,2609.8,2609.5,0.3831]
[1724339859625,1.1101,2609.7,2609.6,0.38309]
[1724339860129,1.1101,2609.7,2609.6,4.21509]
[1724339860330,1.1101,2609.7,2609.5,0.3831]
[1724339861133,1.1101,2609.7,2609.6,0.38309]
[1724339863233,1.1101,2609.7,2609.6,4.21509]
[1724339864038,1.1101,2609.7,2609.5,0.3831]
[1724339864233,0.3831,2609.6,2609.4,0.38312]
[1724339864437,0.3831,2609.6,2609.3,0.38888186]
[1724339864438,1.0591,2609.5,2609.3,0.38888186]
[1724339864942,1.44221,2609.5,2609.3,0.38888186]
[1724339865337,0.38312,2609.4,2609.3,0.00575186]
[1724339865542,5.45294,2609.4,2609.3,0.00575186]
[1724339865742,10.17294,2609.4,2609.3,0.00575186]
[1724339866133,0.38319,2609.0,2608.7,0.38323]
[1724339866338,1.0856,2608.9,2608.6,4.2567]
[1724339866533,2.2281,2608.9,2608.6,4.63993]
[1724339866740,2.2281,2608.9,2608.6,4.2567]
[1724339867042,2.2281,2608.9,2608.6,4.63993]
[1724339867548,2.6113,2608.9,2608.6,3.2078]
[1724339867743,0.38323,2608.7,2608.6,3.2078]
[1724339868148,0.38324,2608.6,2608.5,0.00282119]
[1724339868338,0.38329,2608.3,2607.7,3.2078]
[1724339868536,0.38326,2608.5,2607.9,0.38334]
[1724339868844,0.38327,2608.4,2607.9,0.38334]
[1724339869253,8.60878926,2608.6,2607.8,0.38335]
[1724339869437,1.1361,2608.3,2607.8,0.38649307]
[1724339869750,1.1361,2608.3,2607.8,0.00314307]
[1724339869945,1.1361,2608.3,2607.9,0.38334]
[1724339870251,1.1361,2608.3,2608.0,0.38333]
[1724339870554,8.9969924,2608.6,2608.0,3.2078]
[1724339870555,7.30175314,2608.6,2608.0,3.2078]
[1724339870853,7.30175314,2608.6,2608.1,0.3833]
[1724339871054,7.30175314,2608.6,2608.2,1.504]
[1724339871549,3.21275314,2608.6,2608.3,0.38328]
[1724339871752,3.21275314,2608.6,2608.2,2.60329]
[1724339871950,0.00495314,2608.6,2608.2,2.22]
[1724339872145,0.00495314,2608.6,2608.3,0.38328]
[1724339872452,0.00495314,2608.6,2608.4,3.2078]
[1724339872650,0.00495314,2608.6,2608.2,2.22]
[1724339872855,0.00495314,2608.6,2608.3,0.38329]
[1724339873053,0.00495314,2608.6,2608.4,0.38326]
[1724339873449,0.00495314,2608.6,2608.5,0.38326]
[1724339873851,0.00495314,2608.6,2608.5,4.21686]
[1724339875339,0.00495314,2608.6,2608.5,3.8336]
[1724339875551,0.00495314,2608.6,2608.2,2.22]
[1724339876052,0.00495314,2608.6,2608.2,1.1207]
[1724339876746,0.38820314,2608.6,2608.2,1.1207]
[1724339877057,0.38820314,2608.6,2608.0,3.2078]
[1724339877058,0.38327,2608.5,2608.0,3.2078]
[1724339877246,0.38327,2608.5,2608.0,3.59113]
[1724339877449,0.38327,2608.4,2607.9,1.49024]
[1724339877945,3.59107,2608.5,2608.0,0.38333]
[1724339878151,3.2078,2608.5,2607.9,1.1069]
[1724339878451,0.38331,2608.2,2607.8,1.05114307]
[1724339878655,2.2028,2608.1,2607.8,0.00314307]
[1724339878958,2.58612,2608.1,2607.8,0.00314307]
[1724339879362,2.58612,2608.1,2607.8,0.38650307]
[1724339880155,2.2028,2608.1,2607.9,0.38334]
[1724339880345,2.2028,2608.1,2607.8,0.38649307]
[1724339881052,0.38328,2608.4,2608.1,0.38331]
[1724339881251,3.2078,2608.5,2607.8,5.53634307]
[1724339881447,1.11965314,2608.6,2608.3,0.38328]
[1724339881853,0.00495314,2608.6,2608.1,0.9583]
[1724339882155,0.00495314,2608.6,2608.5,0.38326]
[1724339883454,0.00495314,2608.6,2608.3,0.38328]
[1724339883853,0.00495314,2608.6,2608.4,0.38326]
[1724339884548,0.00495314,2608.6,2608.4,1.43046]
[1724339886051,0.00495314,2608.6,2608.4,1.0472]
[1724339886754,0.38326,2608.5,2608.4,1.0472]
[1724339887058,0.38326,2608.5,2608.3,3.2078]
[1724339887461,0.00495314,2608.6,2608.3,3.59107]
[1724339887759,0.00495314,2608.6,2608.3,3.59108]
[1724339887948,0.00495314,2608.6,2608.4,0.38327]
[1724339889165,0.00495314,2608.6,2608.3,3.59108]
[1724339890156,0.00495314,2608.6,2608.4,0.38327]
[1724339890554,0.00495314,2608.6,2608.3,3.59108]
[1724339891870,0.00495314,2608.6,2608.4,0.38327]
[1724339892055,0.00495314,2608.6,2608.5,0.38326]
[1724339892258,0.00495314,2608.6,2608.5,6.47866]
[1724339893864,0.00495314,2608.6,2608.5,2.2618]
[1724339894164,0.38326,2608.5,2608.3,3.2078]
[1724339894759,0.38820314,2608.6,2608.3,3.2078]
[1724339894959,0.00495314,2608.6,2608.4,0.38327]
[1724339895259,0.00495314,2608.6,2608.5,0.38326]
[1724339895465,0.00495314,2608.6,2608.4,0.38326]
[1724339896167,0.00495314,2608.6,2608.5,0.38326]
[1724339896664,0.00495314,2608.6,2608.5,4.21686]
[1724339897459,0.00495314,2608.6,2608.5,9.21686]
[1724339898064,0.00495314,2608.6,2608.5,10.28756]
[1724339899162,0.38893186,2609.0,2608.7,0.38322]
[1724339899377,0.00575186,2609.0,2608.8,1.42931]
[1724339899754,0.00575186,2609.0,2608.8,5.26211]
[1724339899958,0.00575186,2609.0,2608.9,4.216]
[1724339900157,0.00575186,2609.0,2608.9,3.8328]
[1724339900359,0.00961169,2609.0,2608.9,4.216]
[1724339900864,0.00961169,2609.0,2608.9,3.8328]
[1724339901864,0.00961169,2609.0,2608.8,3.2078]
[1724339902267,0.00961169,2609.0,2608.8,3.59101]
[1724339902562,0.00961169,2609.0,2608.8,3.2078]
[1724339902763,0.00961169,2609.0,2608.8,3.59101]
[1724339902964,0.00961169,2609.0,2608.9,0.3832]
[1724339903168,0.00961169,2609.0,2608.9,4.216]
[1724339903966,1.0869,2609.4,2609.3,0.38314]
[1724339904271,1.1081,2609.6,2609.3,4.21513]
[1724339905068,1.11268091,2609.6,2609.3,4.21513]
[1724339905265,1.11268091,2609.6,2609.2,0.99000186]
[1724339905464,0.38311,2609.5,2609.2,0.00575186]
[1724339905768,1.49578091,2609.6,2609.2,0.00575186]
[1724339905969,0.38313,2609.4,2609.2,0.00575186]
[1724339906173,0.38314,2609.3,2609.2,0.00575186]
[1724339906374,0.97394,2609.3,2609.2,0.00575186]
[1724339906667,4.80674,2609.3,2609.2,0.00575186]
[1724339907062,8.01454,2609.3,2609.2,0.00575186]
[1724339907275,4.80674,2609.3,2609.2,0.00575186]
[1724339907461,0.38319,2609.0,2608.7,3.2078]
[1724339907657,4.4236,2609.3,2608.7,3.2078]
[1724339907658,0.6165,2608.9,2608.7,3.2078]
[1724339910886,0.6165,2608.9,2608.7,3.59102]
[1724339911777,0.6165,2608.9,2608.8,0.38321]
[1724339911971,0.6165,2608.9,2608.7,3.59102]
[1724339912167,0.6165,2608.9,2608.8,0.38321]
[1724339914400,0.6165,2608.9,2608.7,3.2078]
[1724339914683,0.9997,2608.9,2608.7,3.2078]
[1724339915280,0.6165,2608.9,2608.7,3.2078]
[1724339915875,0.6165,2608.9,2608.7,3.59102]
[1724339916078,0.6165,2608.9,2608.7,3.2078]
[1724339916278,0.6165,2608.9,2608.7,3.59101]
[1724339916577,0.6165,2608.9,2608.8,0.38321]
[1724339916783,0.6165,2608.9,2608.7,3.59102]
[1724339916984,0.6165,2608.9,2608.8,0.38321]
[1724339917185,0.6165,2608.9,2608.7,3.59102]
[1724339917372,0.6165,2608.9,2608.8,0.38321]
[1724339917569,0.6165,2608.9,2608.7,3.59102]
[1724339917778,0.6165,2608.9,2608.7,3.2078]
[1724339919282,4.79084,2608.8,2608.3,3.2078]
[1724339919584,1.00583,2608.7,2608.3,3.59108]
[1724339919982,0.38324,2608.6,2608.3,3.2078]
[1724339920177,1.00584,2608.7,2608.3,3.2078]
[1724339920373,0.6212,2608.5,2608.3,3.2078]
[1724339920879,0.38333,2608.0,2607.8,3.21094307]
[1724339921082,1.60044,2607.9,2607.8,3.21094307]
[1724339921382,1.2171,2607.9,2607.8,3.21094307]
[1724339921689,5.43484,2607.9,2607.8,0.00314307]
[1724339921872,0.38339,2607.6,2607.2,3.2078]
[1724339922982,0.00405919,2607.6,2607.2,3.21072375]
[1724339923578,0.00405919,2607.6,2607.5,3.5912]
[1724339923977,0.00405919,2607.6,2607.5,7.4264]
[1724339924379,0.00405919,2607.6,2607.5,7.043]
[1724339925387,0.00405919,2607.6,2607.4,0.628]
[1724339925885,0.00405919,2607.6,2607.5,0.9803]
[1724339926191,0.00405919,2607.6,2607.5,0.5969]
[1724339926686,0.00405919,2607.6,2607.5,4.8155]
[1724339927688,0.00405919,2607.6,2607.4,1.01141]
[1724339927996,0.38744919,2607.6,2607.4,0.628]
[1724339928298,0.38744919,2607.6,2607.2,1.01996375]
[1724339928299,0.00405919,2607.6,2607.2,1.01996375]
[1724339928785,0.38744919,2607.6,2607.2,0.63652375]
[1724339928992,0.38744919,2607.6,2607.2,1.01996375]
[1724339929191,0.38341,2607.5,2607.2,0.63652375]
[1724339929381,0.00405919,2607.6,2607.2,1.01996375]
[1724339929382,0.38744919,2607.6,2607.2,1.01996375]
[1724339930091,0.3834,2607.5,2607.2,0.63652375]
[1724339930292,0.38744919,2607.6,2607.2,1.01996375]
[1724339930493,0.00405919,2607.6,2607.3,0.38343]
[1724339930788,0.00405919,2607.6,2607.4,0.98362]
[1724339931682,0.00405919,2607.6,2607.5,0.3834]
[1724339932192,0.00405919,2607.6,2607.5,4.7812]
[1724339932798,0.38745919,2607.6,2607.2,0.00292375]
[1724339932982,0.38745919,2607.6,2607.2,0.60312375]
[1724339933184,0.38745919,2607.6,2607.2,1.16572375]
[1724339933586,0.38745919,2607.6,2607.2,1.54917375]
[1724339934394,0.00405919,2607.6,2607.5,0.3834]
[1724339934788,0.00405919,2607.6,2607.5,4.2186]
[1724339935090,0.00405919,2607.6,2607.5,4.7808]
[1724339936789,0.00405919,2607.6,2607.5,0.5622]
[1724339937096,0.00405919,2607.6,2607.4,3.2078]
[1724339937299,0.00405919,2607.6,2607.3,0.38342]
[1724339937694,0.00405919,2607.6,2607.3,0.38343]
[1724339938397,0.3834,2607.5,2607.2,1.16572375]
[1724339939195,0.38342,2607.4,2607.2,1.16572375]
[1724339939401,0.38341,2607.5,2607.2,1.16572375]
[1724339939895,0.38341,2607.5,2607.2,1.54917375]
[1724339940496,0.38341,2607.5,2607.2,1.16572375]
[1724339940988,0.38343,2607.4,2607.2,0.56552375]
[1724339941390,0.38341,2607.5,2607.2,0.94896375]
[1724339941591,0.38341,2607.5,2607.3,0.5599]
[1724339941802,1.06495919,2607.6,2607.3,0.5599]
[1724339941994,0.38342,2607.4,2607.3,0.5599]
[1724339942188,0.38343,2607.3,2607.2,0.00292375]
[1724339942596,0.38343,2607.4,2607.2,0.00292375]
[1724339943297,1.06495919,2607.6,2607.2,0.00292375]
[1724339943496,1.06495919,2607.6,2607.2,0.38635375]
[1724339943805,0.38341,2607.5,2607.2,0.38635375]
[1724339944000,0.38342,2607.4,2607.2,0.00292375]
[1724339944301,0.38341,2607.5,2607.2,0.55782375]
[1724339944498,0.38341,2607.5,2607.2,0.94127375]
[1724339945001,0.38341,2607.5,2607.3,0.5542]
[1724339945207,1.44835919,2607.6,2607.3,0.5542]
[1724339945700,1.44835919,2607.6,2607.3,0.93763]
[1724339945900,1.44835919,2607.6,2607.3,0.5542]
[1724339948192,0.3834,2607.5,2607.3,0.5542]
[1724339948397,1.44835919,2607.6,2607.3,0.5542]
[1724339951304,1.44835919,2607.6,2607.3,0.93763]
[1724339951699,1.44835919,2607.6,2607.3,0.5542]
[1724339951917,1.06495919,2607.6,2607.4,0.38341]
[1724339952214,0.00405919,2607.6,2607.3,0.5542]
[1724339952401,0.00405919,2607.6,2607.4,0.38341]
[1724339952605,0.00405919,2607.6,2607.3,0.5542]
[1724339953312,0.00405919,2607.6,2607.2,0.55782375]
[1724339953602,3.59123,2607.3,2607.2,0.00292375]
[1724339953805,3.59123,2607.3,2606.7,3.2078]
[1724339953806,0.38346,2607.1,2606.7,3.2078]
[1724339954006,5.35783,2607.5,2606.4,1.6401]
[1724339954007,3.2078,2607.0,2606.4,1.6401]
[1724339954208,4.15539,2607.0,2606.5,0.38355]
[1724339954404,0.94759,2607.0,2606.5,0.38355]
[1724339954595,0.5641,2607.0,2606.6,0.38353]
[1724339954799,0.5641,2607.0,2606.6,0.0043675]
[1724339954800,0.94758,2607.0,2606.6,0.0043675]
[1724339955704,0.5641,2607.0,2606.6,0.3878975]
[1724339956404,0.5641,2607.0,2606.6,0.0043675]
[1724339956711,0.94758,2607.0,2606.6,0.0043675]
[1724339957101,0.5641,2607.0,2606.6,0.3878975]
[1724339957305,0.38349,2606.9,2606.6,0.0043675]
[1724339957506,0.5641,2607.0,2606.6,0.0043675]
[1724339957909,0.94758,2607.0,2606.6,0.0043675]
[1724339958109,0.38352,2606.7,2606.6,0.0043675]
[1724339958308,3.69852,2606.7,2606.6,0.0043675]
[1724339958514,14.4762,2606.7,2605.8,0.5352]
[1724339958710,0.38367,2605.7,2605.3,3.2078]
[1724339959105,0.38367,2605.7,2605.0,0.38376]
[1724339959106,7.6214,2605.6,2604.9,0.38378]
[1724339959306,3.6987,2605.5,2604.6,0.38382]
[1724339959500,3.6987,2605.5,2604.6,0.3881191]
[1724339959501,3.31853279,2605.5,2604.6,0.3881191]
[1724339959716,3.70223279,2605.5,2604.6,0.3881291]
[1724339960209,3.70223279,2605.5,2604.8,3.2078]
[1724339960210,3.31853279,2605.5,2604.8,3.2078]
[1724339960414,0.38723279,2605.5,2604.8,3.2078]
[1724339960708,0.38723279,2605.5,2604.6,0.3881191]
[1724339960709,3.2078,2605.3,2604.6,0.3881191]
[1724339961417,3.2078,2605.3,2604.6,0.0042991]
[1724339961919,0.5646,2605.2,2604.6,0.0042991]
[1724339962107,0.5646,2605.2,2604.6,0.3881291]
[1724339962301,0.5646,2605.2,2604.7,0.38381]
[1724339962498,0.5646,2605.2,2604.6,0.0042991]
[1724339962499,0.00575186,2605.2,2604.8,3.2078]
[1724339963302,0.00575186,2605.2,2604.9,0.38378]
[1724339963816,0.00575186,2605.2,2604.6,0.0042991]
[1724339964109,0.00575186,2605.2,2604.9,3.2078]
[1724339964508,0.00575186,2605.2,2605.0,0.4601]
[1724339965107,0.00575186,2605.2,2605.0,4.2985]
[1724339965415,0.00575186,2605.2,2605.1,4.22216]
[1724339965614,0.00575186,2605.2,2605.1,5.12636]
[1724339965823,0.00575186,2605.2,2605.1,10.12636]
[1724339966110,0.00575186,2605.2,2605.1,0.4674]
[1724339966713,0.00575186,2605.2,2605.0,0.4601]
[1724339967715,0.00575186,2605.2,2605.1,0.38376]
[1724339968119,0.00575186,2605.2,2605.1,9.22216]
[1724339969510,0.00575186,2605.2,2604.9,3.2078]
[1724339969717,0.00575186,2605.2,2605.1,0.38376]
[1724339970412,0.00575186,2605.2,2604.9,3.2078]
[1724339970612,0.00575186,2605.2,2605.1,0.38376]
[1724339970908,0.00575186,2605.2,2605.1,4.22216]
[1724339971112,0.00575186,2605.2,2605.1,9.22216]
[1724339972324,4.089,2606.4,2605.2,0.95932]
[1724339972512,0.4501,2606.3,2605.9,3.2078]
[1724339972714,0.4501,2606.3,2605.9,3.59143]
[1724339972916,0.4501,2606.3,2606.0,40.78361]
[1724339973220,0.4501,2606.3,2605.9,3.21355186]
[1724339973420,0.45449659,2606.3,2606.0,0.38361]
[1724339973613,0.83807659,2606.3,2605.9,3.21355186]
[1724339973810,0.38362,2606.0,2605.9,3.21355186]
[1724339974015,0.38361,2606.1,2605.9,3.21355186]
[1724339974319,0.3836,2606.2,2605.9,3.21355186]
[1724339974918,0.38361,2606.1,2605.9,3.21355186]
[1724339975115,0.83807659,2606.3,2605.9,3.21355186]
[1724339975318,0.45449659,2606.3,2605.9,3.59718186]
[1724339975710,0.83807659,2606.3,2605.9,3.21355186]
[1724339975911,0.38362,2606.0,2605.9,0.00575186]
[1724339976122,5.38362,2606.0,2605.9,0.00575186]
[1724339976314,9.22122,2606.0,2605.9,0.00575186]
[1724339976513,8.8376,2606.0,2605.0,3.2078]
[1724339976715,3.2078,2605.9,2605.1,0.38375]
[1724339976910,4.07104,2605.9,2605.3,0.38372]
[1724339977122,0.4655,2605.8,2605.3,0.38372]
[1724339978223,0.4655,2605.8,2605.3,3.59152]
[1724339978424,0.4655,2605.8,2605.3,3.2078]
[1724339978627,0.4655,2605.8,2605.3,3.59152]
[1724339979015,0.4655,2605.8,2605.0,3.2078]
[1724339979420,0.38367,2605.7,2605.1,0.38374]
[1724339979623,0.38368,2605.6,2605.0,3.59156]
[1724339979812,0.38367,2605.7,2605.1,0.38375]
[1724339980327,0.4655,2605.8,2604.9,0.38377]
[1724339980328,0.3837,2605.5,2604.9,0.38377]
[1724339980621,0.38371,2605.4,2604.8,0.86329]
[1724339980813,0.4759,2605.3,2604.9,0.38378]
[1724339981013,0.4377,2605.2,2605.0,0.38376]
[1724339981316,0.4377,2605.2,2605.1,3.2078]
[1724339981630,0.4377,2605.2,2605.0,0.38376]
[1724339983222,0.4377,2605.2,2604.9,0.38378]
[1724339984130,0.4377,2605.2,2605.0,0.38376]
[1724339984328,0.4377,2605.2,2604.8,3.6873]
[1724339984729,0.4377,2605.2,2605.0,0.38376]
[1724339985626,0.4377,2605.2,2605.0,0.38377]
[1724339985938,0.4377,2605.2,2604.8,3.6873]
[1724339986230,0.4377,2605.2,2605.1,3.59155]
[1724339986639,0.4377,2605.2,2605.1,3.2078]
[1724339986822,0.4377,2605.2,2604.7,0.38381]
[1724339986823,0.38376,2605.1,2604.7,0.38381]
[1724339987027,0.38377,2605.0,2604.6,0.3881191]
[1724339987224,0.38378,2604.9,2604.6,0.0042991]
[1724339987424,0.3838,2604.8,2604.6,0.0042991]
[1724339987625,0.81951,2604.7,2604.6,0.0042991]
[1724339987835,4.13751,2604.7,2604.6,0.0042991]
[1724339988133,16.76024,2604.7,2604.0,0.38391]
[1724339988325,0.38386,2604.4,2603.9,0.38392]
[1724339988528,0.38386,2604.4,2604.0,0.38391]
[1724339988832,0.38386,2604.4,2603.9,0.38392]
[1724339989032,0.38386,2604.4,2604.0,0.38391]
[1724339989225,0.3884201,2604.4,2604.0,0.0038553]
[1724339989422,0.0045601,2604.4,2604.0,0.3877653]
[1724339989737,0.0045601,2604.4,2604.0,0.0038553]
[1724339989933,0.0045601,2604.4,2604.1,3.6558]
[1724339990333,0.0045601,2604.4,2604.3,0.38387]
[1724339990833,4.089,2604.9,2604.6,0.38382]
[1724339991037,0.44085186,2605.1,2604.4,0.84005]
[1724339991238,0.38378,2604.9,2604.4,0.4562]
[1724339991536,0.38378,2604.9,2604.4,0.84005]
[1724339991924,0.3838,2604.8,2604.3,0.38386]
[1724339992130,0.00411319,2604.9,2604.3,0.38386]
[1724339992328,0.38381,2604.8,2604.3,0.38386]
[1724339992638,0.00411319,2604.9,2604.2,0.38389]
[1724339992943,0.38385,2604.5,2604.1,4.0397]
[1724339993234,0.9595,2604.8,2604.1,4.0397]
[1724339993235,0.38386,2604.4,2604.1,4.0397]
[1724339993535,0.38385,2604.5,2604.1,4.0397]
[1724339993936,3.2078,2604.7,2604.1,4.0397]
[1724339993937,0.38384,2604.6,2604.2,0.38388]
[1724339994431,0.38385,2604.5,2604.1,4.03969]
[1724339994634,0.38381,2604.7,2604.4,0.38385]
[1724339994826,0.38381,2604.7,2604.5,0.38384]
[1724339994827,0.4383,2604.7,2604.5,0.38384]
[1724339995034,0.4383,2604.7,2604.1,3.6558]
[1724339995234,0.38383,2604.6,2604.2,0.38389]